[Event "Swedish Chess Championship 2019: Minior-SM"]
[Site "Stiga Sports Arena, Arenatorget 1, Eskilstuna, Sweden, Sweden"]
[Date "2019.07.08"]
[Round "1.6"]
[White "Enholm, Herman"]
[Black "Willstedt, Lukas"]
[Result "1-0"]
[TimeControl "90 minutes for 40 moves + 30 minutes for the rest of the game + 30 seconds per move from move one"]
[WhiteFideId "1744500"]
[BlackFideId "1751913"]
[WhiteElo "1695"]
[BlackElo "1259"]

1. d4 {[%clk 01:30:44]} {[%emt 00:00:15]} e6 {[%clk 01:30:58]} {[%emt
00:00:03]} 2. c4 {[%clk 01:31:01]} {[%emt 00:00:13]} Nf6 {[%clk 01:31:10]}
{[%emt 00:00:18]} 3. Nc3 {[%clk 01:30:59]} {[%emt 00:00:33]} Bb4 {[%clk
01:31:04]} {[%emt 00:00:36]} 4. Qc2 {[%clk 01:30:51]} {[%emt 00:00:38]} O-O
{[%clk 01:30:41]} {[%emt 00:00:52]} 5. Bg5 {[%clk 01:30:30]} {[%emt 00:00:51]}
c5 {[%clk 01:30:23]} {[%emt 00:00:48]} 6. e3 {[%clk 01:30:00]} {[%emt
00:01:00]} h6 {[%clk 01:29:47]} {[%emt 00:01:06]} 7. Bh4 {[%clk 01:29:56]}
{[%emt 00:00:34]} d5 {[%clk 01:30:05]} {[%emt 00:00:43]} 8. Nf3 {[%clk
01:29:09]} {[%emt 00:01:47]} Nc6 {[%clk 01:30:04]} {[%emt 00:00:31]} 9. cxd5
{[%clk 01:27:52]} {[%emt 00:01:46]} exd5 {[%clk 01:29:51]} {[%emt 00:00:44]} 10.
dxc5 {[%clk 01:27:24]} {[%emt 00:00:58]} Bg4 {[%clk 01:29:04]} {[%emt
00:01:16]} 11. Be2 {[%clk 01:26:33]} {[%emt 00:01:21]} Bxc3+ {[%clk 01:26:53]}
{[%emt 00:02:42]} 12. Qxc3 {[%clk 01:23:07]} {[%emt 00:03:57]} Ne4 {[%clk
01:26:29]} {[%emt 00:00:54]} 13. Bxd8 {[%clk 01:22:42]} {[%emt 00:00:56]} Nxc3
{[%clk 01:26:18]} {[%emt 00:00:41]} 14. bxc3 {[%clk 01:22:43]} {[%emt
00:00:28]} Raxd8 {[%clk 01:25:58]} {[%emt 00:00:49]} 15. Rb1 {[%clk 01:22:08]}
{[%emt 00:01:05]} Rd7 {[%clk 01:25:41]} {[%emt 00:00:47]} 16. Nd4 {[%clk
01:12:07]} {[%emt 00:10:32]} Bxe2 {[%clk 01:25:45]} {[%emt 00:00:27]} 17. Kxe2
{[%clk 01:12:20]} {[%emt 00:00:17]} f5 {[%clk 01:25:20]} {[%emt 00:00:54]} 18.
Rb2 {[%clk 01:10:46]} {[%emt 00:02:04]} f4 {[%clk 01:25:14]} {[%emt 00:00:36]}
19. Ne6 {[%clk 01:09:43]} {[%emt 00:01:33]} Rf6 {[%clk 01:23:30]} {[%emt
00:02:13]} 20. Nxf4 {[%clk 01:07:36]} {[%emt 00:02:39]} g5 {[%clk 01:22:32]}
{[%emt 00:01:28]} 21. Nd3 {[%clk 01:06:53]} {[%emt 00:01:13]} Na5 {[%clk
01:22:01]} {[%emt 00:01:01]} 22. Rhb1 {[%clk 01:05:53]} {[%emt 00:01:29]} a6
{[%clk 01:21:03]} {[%emt 00:01:29]} 23. c6 {[%clk 01:03:12]} {[%emt 00:03:10]}
bxc6 {[%clk 01:19:44]} {[%emt 00:01:49]} 24. Rb8+ {[%clk 01:02:48]} {[%emt
00:00:54]} Kg7 {[%clk 01:19:51]} {[%emt 00:00:23]} 25. Nc5 {[%clk 01:02:36]}
{[%emt 00:00:41]} Rdf7 {[%clk 01:18:54]} {[%emt 00:01:28]} 26. f3 {[%clk
01:01:05]} {[%emt 00:02:01]} Re7 {[%clk 01:17:53]} {[%emt 00:01:30]} 27. R1b6
{[%clk 00:58:51]} {[%emt 00:02:44]} Nc4 {[%clk 01:16:41]} {[%emt 00:01:41]} 28.
R8b7 {[%clk 00:55:18]} {[%emt 00:04:05]} Rff7 {[%clk 01:16:25]} {[%emt
00:00:46]} 29. Rxe7 {[%clk 00:55:17]} {[%emt 00:00:32]} Rxe7 {[%clk 01:16:31]}
{[%emt 00:00:24]} 30. Rb7 {[%clk 00:55:00]} {[%emt 00:00:46]} Rxb7 {[%clk
01:16:18]} {[%emt 00:00:43]} 31. Nxb7 {[%clk 00:55:17]} {[%emt 00:00:13]} Kf6
{[%clk 01:16:46]} {[%emt 00:00:02]} 32. Nc5 {[%clk 00:53:57]} {[%emt 00:01:49]}
a5 {[%clk 01:16:28]} {[%emt 00:00:49]} 33. Nb3 {[%clk 00:53:23]} {[%emt
00:01:03]} Ke5 {[%clk 01:15:06]} {[%emt 00:01:53]} 34. g3 {[%clk 00:50:44]}
{[%emt 00:03:07]} a4 {[%clk 01:14:12]} {[%emt 00:01:26]} 35. Nd2 {[%clk
00:49:37]} {[%emt 00:01:37]} Na3 {[%clk 01:13:47]} {[%emt 00:00:56]} 36. f4+
{[%clk 00:48:53]} {[%emt 00:01:13]} Kf5 {[%clk 01:13:43]} {[%emt 00:00:34]} 37.
h3 {[%clk 00:48:27]} {[%emt 00:00:56]} h5 {[%clk 01:13:09]} {[%emt 00:01:05]}
38. Kf3 {[%clk 00:47:55]} {[%emt 00:01:00]} g4+ {[%clk 01:13:21]} {[%emt
00:00:19]} 39. hxg4+ {[%clk 00:48:11]} {[%emt 00:00:14]} hxg4+ {[%clk
01:13:33]} {[%emt 00:00:19]} 40. Ke2 {[%clk 00:48:17]} {[%emt 00:00:24]} c5
{[%clk 01:13:36]} {[%emt 00:00:27]} 41. Kd3 {[%clk 00:47:42]} {[%emt 00:01:04]}
Nb5 {[%clk 01:12:57]} {[%emt 00:01:10]} 42. c4 {[%clk 00:47:29]} {[%emt
00:00:42]} dxc4+ {[%clk 01:11:16]} {[%emt 00:02:12]} 43. Kxc4 {[%clk 00:47:13]}
{[%emt 00:00:45]} Na3+ {[%clk 01:11:04]} {[%emt 00:00:42]} 44. Kxc5 {[%clk
00:47:06]} {[%emt 00:00:37]} Nc2 {[%clk 01:11:17]} {[%emt 00:00:17]} 45. e4
{[%clk 00:47:09]} {[%emt 00:00:28]} Kf6 {[%clk 01:11:23]} {[%emt 00:00:23]} 46.
Kd6 {[%clk 00:47:15]} {[%emt 00:00:22]} Nb4 {[%clk 01:10:20]} {[%emt 00:01:36]}
47. a3 {[%clk 00:46:35]} {[%emt 00:01:10]} Nc2 {[%clk 01:10:35]} {[%emt
00:00:14]} 48. Nc4 {[%clk 00:46:29]} {[%emt 00:00:35]} Nd4 {[%clk 01:10:46]}
{[%emt 00:00:21]} 49. Ne3 {[%clk 00:44:45]} {[%emt 00:02:08]} Nb5+ {[%clk
01:10:32]} {[%emt 00:00:50]} 50. Kc5 {[%clk 00:44:36]} {[%emt 00:00:38]} Nxa3
{[%clk 01:08:54]} {[%emt 00:02:09]} 51. Kb4 {[%clk 00:44:22]} {[%emt 00:00:43]}
Nb1 {[%clk 01:08:42]} {[%emt 00:00:42]} 52. e5+ {[%clk 00:44:10]} {[%emt
00:00:42]} Ke6 {[%clk 01:08:44]} {[%emt 00:00:28]} 53. Kxa4 {[%clk 00:44:10]}
{[%emt 00:00:30]} Nc3+ {[%clk 01:08:23]} {[%emt 00:00:51]} 54. Kb4 {[%clk
00:43:56]} {[%emt 00:00:44]} Ne4 {[%clk 01:08:07]} {[%emt 00:00:46]} 55. Nf1
{[%clk 00:40:47]} {[%emt 00:03:35]} Kd5 {[%clk 01:08:23]} {[%emt 00:00:19]} 56.
Kb3 {[%clk 00:38:56]} {[%emt 00:02:21]} Nc5+ {[%clk 01:06:33]} {[%emt
00:02:19]} 57. Kc3 {[%clk 00:39:15]} {[%emt 00:00:11]} Ke4 {[%clk 01:06:04]}
{[%emt 00:01:00]} 58. Nh2 {[%clk 00:37:40]} {[%emt 00:02:02]} Kf5 {[%clk
01:05:29]} {[%emt 00:01:07]} 59. Kd4 {[%clk 00:37:18]} {[%emt 00:00:52]} Ne4
{[%clk 01:05:14]} {[%emt 00:00:46]} 60. Nf1 {[%clk 00:36:50]} {[%emt 00:00:56]}
Nf2 {[%clk 01:05:12]} {[%emt 00:00:34]} 61. Kd5 {[%clk 00:35:26]} {[%emt
00:01:53]} Nd3 {[%clk 01:04:28]} {[%emt 00:01:15]} 62. Ne3 {[%clk 00:35:22]}
{[%emt 00:00:34]} Kg6 {[%clk 01:03:35]} {[%emt 00:01:23]} 63. Nxg4 {[%clk
00:32:50]} {[%emt 00:03:02]} Nb4+ {[%clk 01:03:24]} {[%emt 00:00:42]} 64. Ke4
{[%clk 00:32:14]} {[%emt 00:01:04]} Nc6 {[%clk 01:03:14]} {[%emt 00:00:41]} 65.
Ne3 {[%clk 00:32:16]} {[%emt 00:00:28]} Ne7 {[%clk 01:02:59]} {[%emt 00:00:46]}
66. g4 {[%clk 00:32:08]} {[%emt 00:00:37]} Kf7 {[%clk 01:03:12]} {[%emt
00:00:18]} 67. f5 {[%clk 00:31:53]} {[%emt 00:00:44]} Ng8 {[%clk 01:03:08]}
{[%emt 00:00:35]} 68. g5 {[%clk 00:31:52]} {[%emt 00:00:30]} Ne7 {[%clk
01:03:02]} {[%emt 00:00:37]} 69. Nd5 {[%clk 00:31:46]} {[%emt 00:00:36]} Ng8
{[%clk 01:02:06]} {[%emt 00:01:26]} 70. e6+ {[%clk 00:31:35]} {[%emt 00:00:41]}
Kg7 {[%clk 01:02:04]} {[%emt 00:00:32]} 71. f6+ {[%clk 00:31:33]} {[%emt
00:00:33]} Kh8 {[%clk 01:02:11]} {[%emt 00:00:23]} 72. e7 {[%clk 00:31:28]}
{[%emt 00:00:34]} Kh7 {[%clk 01:01:45]} {[%emt 00:00:57]} 73. e8=Q {[%clk
00:31:01]} {[%emt 00:00:57]} Nxf6+ {[%clk 01:01:33]} {[%emt 00:00:41]} 74.
Nxf6+ {[%clk 00:31:19]} {[%emt 00:00:12]} Kg7 {[%clk 01:01:34]} {[%emt
00:00:30]} 75. Qg8# {[%clk 00:31:36]} {[%emt 00:00:12]} 1-0

[Event "Swedish Chess Championship 2019: Minior-SM"]
[Site "Stiga Sports Arena, Arenatorget 1, Eskilstuna, Sweden, Sweden"]
[Date "2019.07.08"]
[Round "2.1"]
[White "Falkevall, Axel"]
[Black "Johansson-Ohman, Linnea"]
[Result "1-0"]
[TimeControl "90 minutes for 40 moves + 30 minutes for the rest of the game + 30 seconds per move from move one"]
[WhiteFideId "1735560"]
[BlackFideId "1737260"]
[WhiteElo "2067"]
[BlackElo "1529"]

1. d4 {[%clk 01:30:59]} f5 {[%clk 01:30:51]} {[%emt 00:00:10]} 2. g3 {[%clk
01:31:16]} {[%emt 00:00:13]} Nf6 {[%clk 01:31:11]} {[%emt 00:00:09]} 3. Bg2
{[%clk 01:31:37]} {[%emt 00:00:08]} g6 {[%clk 01:31:22]} {[%emt 00:00:20]} 4.
c4 {[%clk 01:31:33]} {[%emt 00:00:34]} Bg7 {[%clk 01:31:17]} {[%emt 00:00:35]}
5. Nc3 {[%clk 01:30:57]} {[%emt 00:01:07]} d6 {[%clk 01:30:40]} {[%emt
00:01:06]} 6. Nf3 {[%clk 01:29:23]} {[%emt 00:02:03]} O-O {[%clk 01:30:26]}
{[%emt 00:00:44]} 7. O-O {[%clk 01:29:12]} {[%emt 00:00:41]} Re8 {[%clk
01:29:36]} {[%emt 00:01:20]} 8. Re1 {[%clk 01:20:54]} {[%emt 00:08:49]} Nbd7
{[%clk 01:27:12]} {[%emt 00:02:54]} 9. e4 {[%clk 01:18:14]} {[%emt 00:03:10]}
fxe4 {[%clk 01:10:40]} {[%emt 00:17:02]} 10. Ng5 {[%clk 01:16:57]} {[%emt
00:01:46]} Nb6 {[%clk 00:53:25]} {[%emt 00:17:46]} 11. Ncxe4 {[%clk 01:12:35]}
{[%emt 00:04:52]} c6 {[%clk 00:27:56]} {[%emt 00:25:59]} 12. Qb3 {[%clk
01:07:19]} {[%emt 00:05:46]} Nxe4 {[%clk 00:26:16]} {[%emt 00:02:10]} 13. Bxe4
{[%clk 01:06:32]} {[%emt 00:01:17]} d5 {[%clk 00:20:53]} {[%emt 00:05:53]} 14.
cxd5 {[%clk 01:04:30]} {[%emt 00:02:32]} cxd5 {[%clk 00:21:18]} {[%emt
00:00:06]} 15. Be3 {[%clk 01:01:19]} {[%emt 00:03:40]} e6 {[%clk 00:20:53]}
{[%emt 00:00:55]} 16. Bg2 {[%clk 01:01:07]} {[%emt 00:00:39]} Nc4 {[%clk
00:15:32]} {[%emt 00:05:54]} 17. Nf3 {[%clk 00:58:54]} {[%emt 00:02:42]} b6
{[%clk 00:13:17]} {[%emt 00:02:47]} 18. Bf4 {[%clk 00:53:28]} {[%emt 00:05:55]}
h6 {[%clk 00:11:15]} {[%emt 00:02:33]} 19. h4 {[%clk 00:51:18]} {[%emt
00:02:39]} Rf8 {[%clk 00:09:02]} {[%emt 00:02:43]} 20. Qc2 {[%clk 00:48:53]}
{[%emt 00:02:55]} Qf6 {[%clk 00:07:19]} {[%emt 00:02:13]} 21. b3 {[%clk
00:46:47]} {[%emt 00:02:36]} Na3 {[%clk 00:06:38]} {[%emt 00:01:11]} 22. Qd2
{[%clk 00:46:28]} {[%emt 00:00:46]} Nb5 {[%clk 00:01:32]} {[%emt 00:05:40]} 23.
Rad1 {[%clk 00:45:52]} {[%emt 00:01:05]} Rf7 {[%clk 00:00:48]} {[%emt
00:01:13]} 24. a4 {[%clk 00:43:57]} {[%emt 00:02:25]} Nc7 {[%clk 00:01:12]}
{[%emt 00:00:06]} 25. Bxh6 {[%clk 00:43:19]} {[%emt 00:01:08]} Bxh6 {[%clk
00:00:35]} {[%emt 00:01:07]} 26. Qxh6 {[%clk 00:43:31]} {[%emt 00:00:18]} Rh7
{[%clk 00:00:41]} {[%emt 00:00:25]} 27. Qe3 {[%clk 00:42:17]} {[%emt 00:01:37]}
Ne8 {[%clk 00:00:38]} {[%emt 00:00:39]} 28. Ng5 {[%clk 00:42:33]} {[%emt
00:00:14]} Rd7 {[%clk 00:00:34]} {[%emt 00:00:35]} 29. Qxe6+ {[%clk 00:42:49]}
{[%emt 00:00:13]} Qxe6 {[%clk 00:00:56]} {[%emt 00:00:08]} 30. Rxe6 {[%emt
00:00:08]} Ng7 {[%clk 00:00:35]} {[%emt 00:00:50]} 1-0

[Event "Swedish Chess Championship 2019: Minior-SM"]
[Site "Stiga Sports Arena, Arenatorget 1, Eskilstuna, Sweden, Sweden"]
[Date "2019.07.08"]
[Round "2.2"]
[White "Gerdes, Sebastian"]
[Black "Grahn, Vidar"]
[Result "1-0"]
[TimeControl "90 minutes for 40 moves + 30 minutes for the rest of the game + 30 seconds per move from move one"]
[WhiteFideId "1745697"]
[BlackFideId "1744780"]
[WhiteElo "1529"]
[BlackElo "1980"]

1. c4 {[%clk 01:30:59]} {[%emt 00:00:01]} e5 {[%clk 01:30:56]} {[%emt
00:00:05]} 2. g3 {[%clk 01:31:17]} {[%emt 00:00:12]} Nc6 {[%clk 01:31:21]}
{[%emt 00:00:04]} 3. Bg2 {[%clk 01:31:32]} {[%emt 00:00:14]} f5 {[%clk
01:31:43]} {[%emt 00:00:08]} 4. Nc3 {[%clk 01:31:06]} {[%emt 00:00:57]} Nf6
{[%clk 01:32:08]} {[%emt 00:00:05]} 5. e3 {[%clk 01:31:21]} {[%emt 00:00:15]}
Bc5 {[%clk 01:32:32]} {[%emt 00:00:06]} 6. Nge2 {[%clk 01:31:20]} {[%emt
00:00:31]} d6 {[%clk 01:32:53]} {[%emt 00:00:09]} 7. O-O {[%clk 01:31:22]}
{[%emt 00:00:28]} O-O {[%clk 01:33:19]} {[%emt 00:00:04]} 8. d4 {[%clk
01:28:31]} {[%emt 00:03:21]} Bb6 {[%clk 01:33:44]} {[%emt 00:00:05]} 9. a3
{[%clk 01:26:57]} {[%emt 00:02:05]} a5 {[%clk 01:32:55]} {[%emt 00:01:19]} 10.
Rb1 {[%clk 01:26:46]} {[%emt 00:00:41]} Ne7 {[%clk 01:30:33]} {[%emt 00:02:51]}
11. b4 {[%clk 01:22:56]} {[%emt 00:04:21]} axb4 {[%clk 01:30:01]} {[%emt
00:01:02]} 12. axb4 {[%clk 01:23:19]} {[%emt 00:00:07]} c6 {[%clk 01:30:06]}
{[%emt 00:00:24]} 13. Qc2 {[%clk 01:13:13]} {[%emt 00:10:37]} e4 {[%clk
01:26:48]} {[%emt 00:03:48]} 14. Rd1 {[%clk 01:08:54]} {[%emt 00:04:49]} d5
{[%clk 01:24:52]} {[%emt 00:02:26]} 15. Na4 {[%clk 01:06:44]} {[%emt 00:02:40]}
Kh8 {[%clk 01:21:21]} {[%emt 00:04:01]} 16. Nxb6 {[%clk 00:56:43]} {[%emt
00:10:31]} Qxb6 {[%clk 01:21:46]} {[%emt 00:00:05]} 17. c5 {[%clk 00:51:39]}
{[%emt 00:05:35]} Qc7 {[%clk 01:19:32]} {[%emt 00:02:43]} 18. Nc3 {[%clk
00:51:08]} {[%emt 00:01:01]} Be6 {[%clk 01:16:29]} {[%emt 00:03:33]} 19. b5
{[%clk 00:50:44]} {[%emt 00:00:56]} g5 {[%clk 01:14:19]} {[%emt 00:02:39]} 20.
Qe2 {[%clk 00:46:40]} {[%emt 00:04:33]} Ng6 {[%clk 01:12:27]} {[%emt 00:02:22]}
21. bxc6 {[%clk 00:41:42]} {[%emt 00:05:29]} bxc6 {[%clk 01:12:50]} {[%emt
00:00:07]} 22. Rb6 {[%clk 00:41:10]} {[%emt 00:01:02]} Nd7 {[%clk 01:09:54]}
{[%emt 00:03:25]} 23. Nb5 cxb5 {[%clk 01:09:24]} 24. Rxe6 {[%clk 00:39:05]}
{[%emt 00:00:07]} Rfb8 {[%clk 01:08:39]} {[%emt 00:01:15]} 25. Rd6 {[%clk
00:36:59]} {[%emt 00:02:36]} Ne7 {[%clk 01:03:01]} {[%emt 00:06:07]} 26. Re6
{[%clk 00:35:02]} {[%emt 00:02:28]} Nf8 {[%clk 01:00:50]} {[%emt 00:02:40]} 27.
Rd6 {[%clk 00:33:54]} {[%emt 00:01:38]} b4 {[%clk 00:50:39]} {[%emt 00:10:41]}
28. Bb2 {[%clk 00:27:28]} {[%emt 00:06:57]} Rd8 {[%clk 00:47:46]} {[%emt
00:03:22]} 29. Rb6 {[%clk 00:27:34]} {[%emt 00:00:23]} Rab8 {[%clk 00:43:53]}
{[%emt 00:04:23]} 30. Ra6 {[%clk 00:26:30]} {[%emt 00:01:34]} Ra8 {[%clk
00:41:21]} {[%emt 00:03:02]} 31. Rda1 {[%clk 00:25:38]} {[%emt 00:01:22]} Rxa6
{[%clk 00:38:27]} {[%emt 00:03:24]} 32. Qxa6 {[%clk 00:25:58]} {[%emt
00:00:10]} Nfg6 {[%clk 00:36:02]} {[%emt 00:02:54]} 33. Qf6+ {[%clk 00:24:38]}
{[%emt 00:01:50]} Kg8 {[%clk 00:36:27]} {[%emt 00:00:05]} 34. Qxg5 {[%clk
00:23:25]} {[%emt 00:01:43]} Qb7 {[%clk 00:30:22]} {[%emt 00:06:35]} 35. Bh3
{[%clk 00:22:54]} {[%emt 00:01:01]} Ra8 {[%clk 00:30:08]} {[%emt 00:00:44]} 36.
Rxa8+ {[%clk 00:22:39]} {[%emt 00:00:45]} Qxa8 {[%clk 00:30:31]} {[%emt
00:00:07]} 37. Bxf5 {[%clk 00:23:04]} {[%emt 00:00:05]} Qa2 {[%clk 00:28:57]}
{[%emt 00:02:04]} 38. Be6+ {[%clk 00:22:26]} {[%emt 00:01:09]} Kg7 {[%clk
00:28:41]} {[%emt 00:00:46]} 39. h4 {[%clk 00:19:56]} {[%emt 00:03:01]} Qxb2
{[%clk 00:23:57]} {[%emt 00:05:13]} 40. h5 {[%clk 00:20:02]} {[%emt 00:00:24]}
Qa1+ {[%clk 00:23:48]} {[%emt 00:00:39]} 41. Kg2 {[%clk 00:20:18]} {[%emt
00:00:14]} Qa6 {[%clk 00:24:04]} {[%emt 00:00:14]} 42. h6+ {[%clk 00:20:24]}
{[%emt 00:00:24]} Kf8 {[%clk 00:24:15]} {[%emt 00:00:19]} 43. Qf6+ {[%clk
00:20:49]} {[%emt 00:00:05]} Ke8 {[%clk 00:24:36]} {[%emt 00:00:08]} 44. Bf7+
{[%clk 00:21:11]} {[%emt 00:00:08]} Kf8 {[%clk 00:24:35]} {[%emt 00:00:31]} 45.
Qg7# {[%clk 00:21:34]} {[%emt 00:00:08]} 1-0

[Event "Swedish Chess Championship 2019: Minior-SM"]
[Site "Stiga Sports Arena, Arenatorget 1, Eskilstuna, Sweden, Sweden"]
[Date "2019.07.08"]
[Round "2.3"]
[White "Strom-Engdahl, Alexander"]
[Black "Platkovs, Daniils"]
[Result "1-0"]
[TimeControl "90 minutes for 40 moves + 30 minutes for the rest of the game + 30 seconds per move from move one"]
[WhiteFideId "1741586"]
[BlackFideId "1739298"]
[WhiteElo "1866"]
[BlackElo "1528"]

1. c4 {[%clk 01:30:06]} {[%emt 00:00:53]} e5 {[%clk 01:30:53]} {[%emt
00:00:07]} 2. Nc3 {[%clk 01:30:19]} {[%emt 00:00:17]} Nc6 {[%clk 01:31:07]}
{[%emt 00:00:17]} 3. g3 {[%clk 01:30:12]} {[%emt 00:00:36]} f5 {[%clk
01:31:22]} {[%emt 00:00:16]} 4. Bg2 {[%clk 01:30:33]} {[%emt 00:00:09]} Nf6
{[%clk 01:31:41]} {[%emt 00:00:11]} 5. d3 {[%clk 01:28:04]} {[%emt 00:02:58]}
Bc5 {[%clk 01:30:18]} {[%emt 00:01:53]} 6. e3 {[%clk 01:25:17]} {[%emt
00:03:17]} d6 {[%clk 01:29:42]} {[%emt 00:01:06]} 7. Nge2 {[%clk 01:23:40]}
{[%emt 00:02:07]} O-O {[%clk 01:28:25]} {[%emt 00:01:48]} 8. O-O {[%clk
01:23:04]} {[%emt 00:01:06]} Ne7 {[%clk 01:21:27]} {[%emt 00:07:28]} 9. Nd5
{[%clk 01:22:45]} {[%emt 00:00:48]} Nexd5 {[%clk 01:18:18]} {[%emt 00:03:39]}
10. cxd5 {[%clk 01:22:53]} {[%emt 00:00:23]} Qe8 {[%clk 01:14:45]} {[%emt
00:04:03]} 11. Nc3 {[%clk 01:20:11]} {[%emt 00:03:12]} Qg6 {[%clk 01:12:14]}
{[%emt 00:03:01]} 12. a3 {[%clk 01:10:29]} {[%emt 00:10:11]} a5 {[%clk
01:10:30]} {[%emt 00:02:14]} 13. d4 {[%clk 01:01:50]} {[%emt 00:09:10]} Bb6
{[%clk 01:08:45]} {[%emt 00:02:15]} 14. dxe5 {[%clk 00:59:54]} {[%emt
00:02:26]} dxe5 {[%clk 01:08:40]} {[%emt 00:00:34]} 15. d6 {[%clk 00:56:15]}
{[%emt 00:04:10]} Rd8 {[%clk 01:05:53]} {[%emt 00:03:16]} 16. Qb3+ {[%clk
00:56:12]} {[%emt 00:00:34]} Kh8 {[%clk 00:56:42]} {[%emt 00:09:40]} 17. dxc7
{[%clk 00:47:14]} {[%emt 00:09:29]} Bxc7 {[%clk 00:55:56]} {[%emt 00:01:14]} 18.
Qc4 {[%clk 00:46:10]} {[%emt 00:01:34]} Bd6 {[%clk 00:42:40]} {[%emt 00:13:46]}
19. Rd1 {[%clk 00:44:35]} {[%emt 00:02:05]} e4 {[%clk 00:40:56]} {[%emt
00:02:15]} 20. Nb5 {[%clk 00:42:10]} {[%emt 00:02:55]} Ne8 {[%clk 00:40:20]}
{[%emt 00:01:05]} 21. Nd4 {[%clk 00:37:18]} {[%emt 00:05:21]} Nc7 {[%clk
00:37:26]} {[%emt 00:03:25]} 22. Bd2 {[%clk 00:29:33]} {[%emt 00:08:15]} b6
{[%clk 00:34:25]} {[%emt 00:03:31]} 23. Bc3 {[%clk 00:24:44]} {[%emt 00:05:19]}
Bb7 {[%clk 00:31:04]} {[%emt 00:03:50]} 24. Bh3 {[%clk 00:23:38]} {[%emt
00:01:36]} Bd5 {[%clk 00:26:27]} {[%emt 00:05:06]} 25. Qe2 {[%clk 00:23:39]}
{[%emt 00:00:30]} Be6 {[%clk 00:26:29]} {[%emt 00:00:28]} 26. Nxe6 {[%clk
00:21:34]} {[%emt 00:02:36]} Nxe6 {[%clk 00:26:41]} {[%emt 00:00:17]} 27. Qb5
{[%clk 00:21:46]} {[%emt 00:00:18]} Bc5 {[%clk 00:26:36]} {[%emt 00:00:33]} 28.
Rxd8+ {[%clk 00:19:58]} {[%emt 00:02:19]} Rxd8 {[%clk 00:26:22]} {[%emt
00:00:44]} 29. b4 {[%clk 00:20:13]} {[%emt 00:00:16]} Nc7 {[%clk 00:23:29]}
{[%emt 00:03:22]} 30. Qc4 {[%clk 00:17:21]} {[%emt 00:03:17]} axb4 {[%clk
00:19:58]} {[%emt 00:04:07]} 31. axb4 {[%clk 00:17:28]} {[%emt 00:00:23]} Bd6
{[%clk 00:19:28]} {[%emt 00:00:59]} 32. Qc6 {[%clk 00:13:55]} {[%emt 00:04:03]}
f4 {[%clk 00:13:54]} {[%emt 00:06:03]} 33. exf4 {[%clk 00:12:49]} {[%emt
00:01:37]} Qh5 {[%clk 00:13:23]} {[%emt 00:01:00]} 34. Bg2 {[%clk 00:12:18]}
{[%emt 00:01:02]} Qb5 {[%clk 00:06:22]} {[%emt 00:07:31]} 35. Bxe4 {[%clk
00:10:40]} {[%emt 00:02:09]} Re8 {[%clk 00:05:34]} {[%emt 00:01:17]} 36. Qxb5
{[%clk 00:10:44]} {[%emt 00:00:26]} Nxb5 {[%clk 00:05:46]} {[%emt 00:00:18]} 37.
Bc6 {[%clk 00:11:11]} {[%emt 00:00:04]} Nxc3 {[%clk 00:02:01]} {[%emt
00:04:14]} 38. Bxe8 {[%clk 00:11:18]} {[%emt 00:00:23]} g6 {[%clk 00:02:02]}
{[%emt 00:00:28]} 39. b5 {[%clk 00:11:35]} {[%emt 00:00:14]} Bc5 {[%clk
00:01:32]} {[%emt 00:00:58]} 40. Bc6 {[%clk 00:10:59]} {[%emt 00:01:07]} Kg7
{[%clk 00:01:26]} {[%emt 00:00:35]} 41. Ra7+ {[%clk 00:11:11]} {[%emt
00:00:19]} Kh6 {[%clk 00:00:49]} {[%emt 00:01:07]} 42. Rd7 {[%clk 00:09:35]}
{[%emt 00:02:06]} Ne2+ {[%clk 00:00:37]} {[%emt 00:00:41]} 43. Kg2 {[%clk
00:09:53]} {[%emt 00:00:09]} Nd4 {[%clk 00:28:56]} {[%emt 00:02:13]} 44. h3
{[%clk 00:37:46]} {[%emt 00:02:37]} Nf5 {[%clk 00:28:18]} {[%emt 00:01:08]} 45.
Bd5 {[%clk 00:37:45]} {[%emt 00:00:31]} Ne7 {[%clk 00:27:31]} {[%emt 00:01:17]}
46. g4 {[%clk 00:37:34]} {[%emt 00:00:43]} Kg7 {[%clk 00:26:16]} {[%emt
00:01:45]} 47. Bc4 {[%clk 00:36:46]} {[%emt 00:01:18]} Kf6 {[%clk 00:23:28]}
{[%emt 00:03:17]} 48. Kf3 {[%clk 00:37:00]} {[%emt 00:00:16]} g5 {[%clk
00:23:12]} {[%emt 00:00:46]} 49. fxg5+ {[%clk 00:37:00]} {[%emt 00:00:31]} Kxg5
{[%clk 00:23:30]} {[%emt 00:00:12]} 50. Kg3 {[%clk 00:37:25]} {[%emt 00:00:06]}
h5 {[%clk 00:22:37]} {[%emt 00:01:21]} 51. f4+ {[%clk 00:37:43]} {[%emt
00:00:13]} Kh6 {[%clk 00:22:05]} {[%emt 00:01:03]} 52. g5+ {[%clk 00:37:48]}
{[%emt 00:00:25]} Kg6 {[%clk 00:18:56]} {[%emt 00:03:37]} 53. Bd3+ {[%clk
00:38:07]} {[%emt 00:00:11]} Kf7 {[%clk 00:18:27]} {[%emt 00:00:58]} 54. Be4
{[%clk 00:38:27]} {[%emt 00:00:12]} Ke6 {[%clk 00:18:01]} {[%emt 00:00:56]} 55.
Rd1 {[%clk 00:38:04]} {[%emt 00:00:47]} Nf5+ {[%clk 00:16:45]} {[%emt
00:01:51]} 56. Bxf5+ {[%clk 00:38:25]} {[%emt 00:00:10]} Kxf5 {[%clk 00:17:01]}
{[%emt 00:00:13]} 57. Rd5+ {[%clk 00:38:01]} {[%emt 00:00:54]} Ke6 {[%clk
00:15:12]} {[%emt 00:02:19]} 58. Re5+ {[%clk 00:38:25]} {[%emt 00:00:06]} Kf7
{[%clk 00:15:01]} {[%emt 00:00:40]} 59. Rxc5 {[%clk 00:38:10]} {[%emt
00:00:46]} 1-0